fUSD/lending_fUSD_20240629
["ID","MTS","AMOUNT","RATE_DAILY","PERIOD"]
[330624726,1719640234621,-150.0,0.00029041,30]
[330624727,1719640234649,-150.0,0.00029178,30]
[330624728,1719640234673,-150.0,0.00029315,30]
[330624729,1719640234700,-150.0,0.00029452,30]
[330624730,1719640234728,-150.0,0.00029589,30]
[330624731,1719640234754,-150.0,0.00029726,30]
[330624732,1719640234783,-1619.539324,0.0002978,10]
[330624733,1719640234808,-1000.0,0.000298,10]
[330624734,1719640234831,-1000.0,0.0002982,10]
[330624735,1719640234855,-1000.0,0.0002984,10]
[330624736,1719640234878,-1000.0,0.0002986,10]
[330624737,1719640234902,-232.05729227,0.00029863,30]
[330624738,1719640234929,-1000.0,0.0002988,10]
[330624739,1719640234955,-1000.0,0.000299,10]
[330624740,1719640234984,-1000.0,0.0002992,10]
[330624741,1719640235008,-1000.0,0.0002994,10]
[330624742,1719640235037,-1000.0,0.0002996,10]
[330624743,1719640235062,-1000.0,0.0002998,10]
[330624744,1719640235088,-3638.0,0.0003,30]
[330624745,1719640235113,-1136.51539364,0.0003,30]
[330624746,1719640235139,-1000.0,0.0003,11]
[330624747,1719640235165,-20203.41,0.0003007,10]
[330624748,1719640235192,-200.0,0.00030137,60]
[330624749,1719640235220,-150.0,0.00030179,120]
[330624750,1719640235252,-150.0,0.000306,10]
[330624751,1719640235279,-250.0,0.000308,30]
[330624752,1719640235308,-8394.0,0.00031,20]
[330624753,1719640235339,-966.0,0.000315,20]
[330624754,1719640235379,-10000.0,0.00032,12]
[330624755,1719640235403,-966.0,0.00032,20]
[330624756,1719640235429,-150.0,0.00032137,120]
[330624757,1719640235454,-150.0,0.000322,120]
[330624758,1719640235480,-3410.00518566,0.000324,12]
[330624759,1719640235508,-150.0,0.00032414,120]
[330624760,1719640235534,-966.0,0.000325,21]
[330624761,1719640235560,-150.0,0.00032566,120]
[330624762,1719640235586,-2416.0,0.00032733,120]
[330624763,1719640235612,-150.0,0.00032787,120]
[330624764,1719640235640,-626.46716284,0.00032876,30]
[330624765,1719640235665,-500.0,0.00032876,120]
[330624766,1719640235692,-500.0,0.00032876,120]
[330624767,1719640235718,-505.70969532,0.00032876,120]
[330624768,1719640235742,-200.0,0.00032877,60]
[330624769,1719640235769,-150.0,0.00032999,120]
[330624770,1719640235794,-500.0,0.00033,120]
[330624771,1719640235819,-966.0,0.00033,22]
[330624772,1719640235844,-679.886129,0.00033,14]
[330624773,1719640235869,-653.21,0.00033151,120]
[330624774,1719640235893,-511.06,0.00033151,120]
[330624775,1719640235921,-150.0,0.00033416,120]
[330624776,1719640235947,-966.0,0.000335,22]
[330624777,1719640235975,-157.7,0.000335,31]
[330624778,1719640236001,-157.7,0.000335,31]
[330624779,1719640236028,-157.7,0.000335,31]
[330624780,1719640236055,-157.7,0.000335,31]
[330624781,1719640236081,-10000.0,0.000337,12]
[330624782,1719640236107,-4182.90905274,0.00033811,40]
[330624783,1719640236131,-938.83779034,0.00034,12]
[330624784,1719640236155,-10000.0,0.00034,12]
[330624785,1719640236181,-500.0,0.00034,120]
[330624786,1719640236205,-966.0,0.00034,23]
[330624787,1719640236230,-10000.0,0.000342,12]
[330624788,1719640236254,-10000.0,0.000342,12]
[330624789,1719640236279,-966.0,0.000345,23]
[330624790,1719640236303,-1252.011455,0.0003494,14]
[330624791,1719640236327,-1000.0,0.0003496,14]
[330624792,1719640236351,-1000.0,0.0003498,14]
[330624793,1719640236378,-186.15074548,0.00035,30]
[330624794,1719640236403,-1292.70530456,0.00035,30]
[330624795,1719640236429,-500.0,0.00035,120]
[330624796,1719640236457,-899.99999906,0.00035,36]
[330624797,1719640236481,-954.70675176,0.00035,20]
[330624798,1719640236509,-966.0,0.00035,24]
[330624799,1719640236534,-1000.0,0.00035,14]
[330624800,1719640236560,-19628.26367274,0.00035,10]
[330624801,1719640236587,-150.0,0.00035015,120]
[330624802,1719640236616,-150.0,0.00035184,120]
[330624803,1719640236645,-150.0,0.00035214,120]
[330624804,1719640236673,-150.0,0.00035392,120]
[330624805,1719640236701,-966.0,0.000355,24]
[330624806,1719640236731,-200.0,0.00035616,60]
[330624807,1719640236762,-150.0,0.00035929,120]
[330624808,1719640236787,-10000.0,0.00036,12]
[330624809,1719640236813,-698.0,0.00036,30]
[330624810,1719640236838,-250.0,0.00036,120]
[330624811,1719640236863,-966.0,0.00036,25]
[330624812,1719640236889,-150.0,0.00036151,120]
[330624813,1719640236913,-10000.0,0.000364,12]
[330624814,1719640236940,-157.7,0.000364,31]
[330624815,1719640236967,-157.7,0.000364,31]
[330624816,1719640236994,-157.7,0.000364,31]
[330624817,1719640237022,-157.7,0.000364,31]
[330624818,1719640237047,-150.0,0.00036466,120]
[330624819,1719640237073,-966.0,0.000365,25]
[330624820,1719640237098,-10000.0,0.000366,12]
[330624821,1719640237123,-152.0,0.00036678,15]
[330624822,1719640237149,-150.0,0.00036842,120]
[330624823,1719640237175,-150.0,0.00036952,120]
[330624824,1719640237200,-778.01423892,0.00037,120]
[330624825,1719640237225,-966.0,0.00037,26]
[330624828,1719640237527,-152.0,0.00037282,15]
[330624829,1719640237554,-150.0,0.00037318,120]
[330624830,1719640237577,-150.0,0.0003735,20]
[330624831,1719640237601,-966.0,0.000375,26]
[330624832,1719640237626,-10000.0,0.000378,12]
[330624833,1719640237655,-150.0,0.0003786,120]
[330624834,1719640237681,-152.0,0.00037886,15]
[330624835,1719640237706,-500.0,0.00037998,31]
[330624836,1719640237734,-372.76388311,0.00038,30]
[330624837,1719640237758,-203.94260263,0.00038,30]
[330624838,1719640237782,-1000.0,0.00038,120]
[330624842,1719640237807,-182.44308668,0.00038,120]
[330624843,1719640237830,-669.21,0.00038,30]
[330624844,1719640237854,-966.0,0.00038,27]
[330624845,1719640237879,-150.0,0.00038147,120]
[330624846,1719640237903,-150.0,0.00038252,120]
[330624847,1719640237927,-761.13,0.00038356,120]
[330624848,1719640237952,-761.13,0.00038356,120]
[330624849,1719640237975,-761.13,0.00038356,120]
[330624850,1719640237999,-761.13,0.00038356,120]
[330624851,1719640238023,-761.13,0.00038356,120]
[330624852,1719640238047,-761.13,0.00038356,120]
[330624853,1719640238071,-761.13,0.00038356,120]
[330624854,1719640238096,-761.13,0.00038356,120]
[330624855,1719640238120,-761.13,0.00038356,120]
[330624856,1719640238144,-761.13,0.00038356,120]
[330624857,1719640238168,-761.13,0.00038356,120]
[330624858,1719640238194,-761.13,0.00038356,120]
[330624859,1719640238219,-761.13,0.00038356,120]
[330624860,1719640238243,-761.13,0.00038356,120]
[330624861,1719640238266,-761.13,0.00038356,120]
[330624862,1719640238290,-761.13,0.00038356,120]
[330624863,1719640238315,-761.13,0.00038356,120]
[330624864,1719640238339,-761.13,0.00038356,120]
[330624865,1719640238363,-761.13,0.00038356,120]
[330624866,1719640238388,-761.13,0.00038356,120]
[330624867,1719640238412,-761.13,0.00038356,120]
[330624868,1719640238439,-761.13,0.00038356,120]
[330624869,1719640238464,-761.13,0.00038356,120]
[330624870,1719640238489,-761.31,0.00038356,120]
[330624871,1719640238517,-1000.0,0.00038356,14]
[330624872,1719640238542,-273.1577579,0.00038356,60]
[330624873,1719640238566,-434.69812365,0.00038356,30]
[330624874,1719640238590,-152.0,0.0003849,15]
[330624875,1719640238614,-966.0,0.000385,28]
[330624876,1719640238643,-434.69812365,0.00038521,30]
[330624877,1719640238670,-10000.0,0.000386,12]
[330624878,1719640238707,-434.69812365,0.00038685,30]
[330624879,1719640238741,-611.09021546,0.000387,30]
[330624880,1719640238771,-150.0,0.00038809,120]
[330624881,1719640238799,-150.0,0.00038818,120]
[330624882,1719640238828,-150.0,0.00038844,120]
[330624883,1719640238856,-434.69812365,0.00038849,30]
[330624884,1719640238882,-699.52391469,0.000389,30]
[330624885,1719640238910,-50000.0,0.00039,29]
[330624886,1719640238938,-344.84748001,0.00039,15]
[330624887,1719640238963,-168.83266221,0.00039,30]
[330624888,1719640238989,-222.12,0.00039,30]
[330624889,1719640239015,-1160.84634179,0.00039,120]
[330624890,1719640239042,-150.00824154,0.00039,120]
[330624891,1719640239070,-966.0,0.00039,28]
[330624892,1719640239096,-1474.42306422,0.00039,120]
[330624893,1719640239124,-434.69812365,0.00039014,30]
[330624894,1719640239151,-150.0,0.0003902,120]
[330624895,1719640239178,-152.0,0.00039093,15]
[330624896,1719640239205,-150.0,0.00039105,120]
[330624897,1719640239230,-1000.0,0.00039178,16]
[330624898,1719640239256,-434.69812365,0.00039178,30]
[330624899,1719640239283,-157.7,0.000392,31]
[330624900,1719640239310,-157.7,0.000392,31]
[330624901,1719640239337,-157.7,0.000392,31]
[330624902,1719640239365,-157.7,0.000392,31]
[330624903,1719640239392,-434.69812365,0.00039315,30]
[330624904,1719640239417,-434.69812365,0.00039479,30]
[330624906,1719640239442,-10000.0,0.000395,12]
[330624907,1719640239467,-353.30717599,0.000395,30]
[330624908,1719640239493,-966.0,0.000395,29]
[330624909,1719640239521,-1320.53073803,0.00039532,15]
[330624910,1719640239548,-150.0,0.00039563,120]
[330624911,1719640239574,-10000.0,0.000396,12]
[330624912,1719640239601,-434.69812365,0.00039644,30]
[330624913,1719640239627,-152.0,0.00039697,15]
[330624914,1719640239657,-472.36909708,0.000397,60]
[330624915,1719640239686,-150.0,0.00039715,120]
[330624916,1719640239717,-434.69812365,0.00039808,30]
[330624917,1719640239747,-150.0,0.0003988,120]
[330624918,1719640239774,-434.69812365,0.00039973,30]
[330624919,1719640239799,-250.0,0.00039999,30]
[330624920,1719640239827,-707.86,0.0004,10]
[330624921,1719640239852,-1000.0,0.0004,20]
[330624922,1719640239881,-15009.96520225,0.0004,12]
[330624923,1719640239907,-172.27777778,0.0004,120]
[330624924,1719640239935,-151.0,0.0004,120]
[330624925,1719640239959,-1194.60848402,0.0004,100]
[330624926,1719640239986,-830.32521375,0.0004,120]
[330624927,1719640240012,-477.12749073,0.0004,30]
[330624928,1719640240039,-309.62629908,0.0004,120]
[330624929,1719640240065,-308.03923783,0.0004,120]
[330624930,1719640240090,-408.77428129,0.0004,30]
[330624931,1719640240115,-262.66988501,0.0004,30]
[330624932,1719640240139,-726.92034219,0.0004,30]
[330624933,1719640240164,-612.59448764,0.0004,30]
[330624934,1719640240189,-230.25703416,0.0004,30]
[330624935,1719640240468,-241.43866249,0.0004,30]
[330624936,1719640240496,-385.46824924,0.0004,120]
[330624937,1719640240524,-1500.0,0.0004,120]
[330624938,1719640240550,-980.5062304,0.0004,30]
[330624939,1719640240577,-1092.30687484,0.0004,60]
[330624940,1719640240604,-966.0,0.0004,29]
[330624941,1719640240637,-324.75,0.0004,120]
[330624942,1719640240667,-298.15,0.0004,120]
[330624943,1719640240695,-1000.0,0.0004,18]
[330624944,1719640240722,-434.69812365,0.00040137,30]
[330624945,1719640240746,-363.94174724,0.0004025,120]
[330624946,1719640240773,-152.0,0.00040301,15]
[330624947,1719640240798,-434.69812365,0.00040301,30]
[330624948,1719640240824,-150.0,0.00040324,120]
[330624949,1719640240848,-434.69812365,0.00040466,30]
[330624950,1719640240872,-966.0,0.000405,30]
[330624951,1719640240897,-434.69812365,0.0004063,30]
[330624952,1719640240922,-2003.0,0.000407,81]
[330624953,1719640240947,-172.27777778,0.00040712,120]
[330624954,1719640240971,-152.28082424,0.00040714,14]
[330624955,1719640240994,-10000.0,0.000408,12]
[330624956,1719640241020,-270.550207,0.000408,30]
[330624957,1719640241044,-1000.0,0.00040821,20]
[330624958,1719640241070,-484.34597925,0.000409,120]
[330624959,1719640241095,-152.0,0.00040905,15]
[330624960,1719640241120,-405.62194093,0.00041,60]
[330624961,1719640241145,-506.35397132,0.00041,120]
[330624962,1719640241169,-720.38,0.00041,120]
[330624963,1719640241196,-1139.11822258,0.00041,30]
[330624964,1719640241220,-22850.0,0.00041,11]
[330624965,1719640241245,-971.56831,0.00041,30]
[330624966,1719640241271,-2474.0875087,0.00041,30]
[330624967,1719640241296,-1008.81951176,0.00041095,120]
[330624968,1719640241323,-574.12,0.00041095,120]
[330624969,1719640241347,-574.12,0.00041095,120]
[330624970,1719640241373,-574.12,0.00041095,120]
[330624971,1719640241397,-574.12,0.00041095,120]
[330624972,1719640241422,-574.12,0.00041095,120]
[330624973,1719640241447,-574.12,0.00041095,120]
[330624974,1719640241472,-574.12,0.00041095,120]
[330624975,1719640241497,-574.12,0.00041095,120]
[330624976,1719640241523,-574.12,0.00041095,120]
[330624977,1719640241548,-574.12,0.00041095,120]
[330624978,1719640241573,-574.12,0.00041095,120]
[330624979,1719640241599,-574.12,0.00041095,120]
[330624980,1719640241624,-574.12,0.00041095,120]
[330624981,1719640241651,-574.12,0.00041095,120]
[330624982,1719640241677,-574.12,0.00041095,120]
[330624983,1719640241705,-574.12,0.00041095,120]
[330624984,1719640241732,-574.12,0.00041095,120]
[330624985,1719640241758,-574.12,0.00041095,120]
[330624986,1719640241782,-574.12,0.00041095,120]
[330624987,1719640241807,-574.12,0.00041095,120]
[330624988,1719640241832,-574.12,0.00041095,120]
[330624989,1719640241857,-574.12,0.00041095,120]
[330624990,1719640241881,-574.12,0.00041095,120]
[330624991,1719640241906,-574.24274073,0.00041095,120]
[330624992,1719640241930,-559.2,0.00041095,20]
[330624993,1719640241954,-559.2,0.00041095,20]
[330624994,1719640241979,-559.2,0.00041095,20]
[330624995,1719640242004,-559.2,0.00041095,20]
[330624996,1719640242028,-559.2,0.00041095,20]
[330624997,1719640242052,-559.2,0.00041095,20]
[330624998,1719640242077,-559.2,0.00041095,20]
[330624999,1719640242101,-559.2,0.00041095,20]
[330625000,1719640242126,-559.2,0.00041095,20]
[330625001,1719640242151,-559.2,0.00041095,20]
[330625002,1719640242175,-559.2,0.00041095,20]
[330625003,1719640242200,-559.2,0.00041095,20]
[330625004,1719640242224,-559.2,0.00041095,20]
[330625005,1719640242248,-559.2,0.00041095,20]
[330625006,1719640242272,-559.2,0.00041095,20]
[330625008,1719640242296,-559.2,0.00041095,20]
[330625009,1719640242321,-559.2,0.00041095,20]
[330625010,1719640242346,-559.2,0.00041095,20]
[330625013,1719640242375,-559.2,0.00041095,20]
[330625017,1719640242400,-559.2,0.00041095,20]
[330625020,1719640242425,-559.2,0.00041095,20]
[330625025,1719640242450,-559.2,0.00041095,20]
[330625028,1719640242474,-559.2,0.00041095,20]
[330625031,1719640242498,-559.3027187,0.00041095,20]
[330625033,1719640242524,-510.0,0.00041095,120]
[330625035,1719640242552,-151.0,0.00041123,120]
[330625036,1719640242577,-510.0,0.00041369,120]
[330625037,1719640242600,-10000.0,0.000414,12]
[330625038,1719640242625,-172.27777778,0.00041425,120]
[330625039,1719640242652,-152.0,0.00041509,31]
[330625040,1719640242675,-510.0,0.00041643,120]
[330625041,1719640242701,-1000.0,0.00041643,22]
[330625042,1719640242727,-287.87248608,0.000418,120]
[330625043,1719640242752,-510.0,0.00041917,120]
[330625044,1719640242777,-1000.0,0.00042,14]
[330625045,1719640242801,-382.04507945,0.00042,120]
[330625046,1719640242827,-980.15777622,0.00042,120]
[330625047,1719640242851,-271.17067437,0.00042,60]
[330625048,1719640242876,-1000.0,0.00042,120]
[330625049,1719640242900,-1303.8359667,0.00042,120]
[330625050,1719640242924,-500.0,0.00042,120]
[330625051,1719640242948,-500.0,0.00042,12]
[330625052,1719640242977,-669.93418,0.00042,12]
[330625053,1719640243004,-157.7,0.000421,31]
[330625054,1719640243031,-157.7,0.000421,31]
[330625055,1719640243059,-157.7,0.000421,31]
[330625057,1719640243319,-157.7,0.000421,31]
[330625058,1719640243347,-152.0,0.00042113,31]
[330625059,1719640243372,-172.27777778,0.00042137,120]
[330625060,1719640243396,-231.47896741,0.00042191,120]
[330625061,1719640243421,-151.0,0.00042247,120]
[330625062,1719640243447,-288.854486,0.00042265,30]
[330625063,1719640243471,-398.894291,0.00042265,30]
[330625064,1719640243499,-150.0,0.00042265,120]
[330625065,1719640243523,-1039.0,0.00042399,30]
[330625066,1719640243547,-10000.0,0.000424,12]
[330625067,1719640243571,-1000.0,0.00042465,24]
[330625068,1719640243595,-408.43625166,0.00042497,120]
[330625069,1719640243619,-354.73,0.000425,120]
[330625070,1719640243646,-1108.95,0.000425,120]
[330625071,1719640243671,-152.0,0.00042717,31]
[330625072,1719640243696,-288.854486,0.00042793,30]
[330625073,1719640243720,-398.894291,0.00042793,30]
[330625074,1719640243746,-172.27777778,0.00042849,120]
[330625075,1719640243771,-150.0,0.00042873,120]
[330625076,1719640243798,-221.32459846,0.0004288,120]
[330625077,1719640243824,-1116.43168472,0.000429,120]
[330625078,1719640243850,-1567.56260676,0.00043,14]
[330625079,1719640243877,-10000.0,0.00043,12]
[330625080,1719640243902,-2000.0,0.00043,14]
[330625081,1719640243925,-769.7612307,0.00043,120]
[330625082,1719640243950,-151.0,0.00043,30]
[330625083,1719640243973,-151.0,0.00043,30]
[330625084,1719640243997,-151.0,0.00043,30]
[330625085,1719640244021,-151.0,0.00043,30]
[330625086,1719640244065,-151.0,0.00043,30]
[330625087,1719640244091,-151.0,0.00043,30]
[330625088,1719640244115,-197.0,0.00043,30]
[330625089,1719640244140,-1270.77331473,0.00043,30]
[330625090,1719640244164,-769.66220005,0.00043,30]
[330625091,1719640244189,-2706.99849977,0.00043,60]
[330625092,1719640244212,-157.99242334,0.00043,30]
[330625093,1719640244236,-582.0,0.00043,120]
[330625094,1719640244261,-355.0,0.00043,120]
[330625095,1719640244286,-204.36156903,0.0004302,120]
[330625096,1719640244311,-598.02568709,0.00043098,120]
[330625097,1719640244336,-10000.0,0.000432,12]
[330625098,1719640244360,-1000.0,0.00043287,26]
[330625099,1719640244385,-152.0,0.00043321,31]
[330625100,1719640244409,-288.854486,0.00043321,30]
[330625101,1719640244435,-398.894291,0.00043321,30]
[330625102,1719640244459,-151.0,0.0004337,120]
[330625103,1719640244485,-172.27777778,0.00043562,120]
[330625104,1719640244511,-225.999999,0.000436,30]
[330625105,1719640244536,-1047.6489,0.00043672,30]
[330625106,1719640244563,-196.49910302,0.000437,120]
[330625107,1719640244589,-240.06,0.000437,120]
[330625108,1719640244615,-490.66778432,0.00043748,120]
[330625109,1719640244645,-464.75209546,0.000438,30]
[330625110,1719640244669,-697.60555327,0.000438,120]
[330625111,1719640244695,-337.71454389,0.000438,120]
[330625112,1719640244724,-534.6314077,0.000438,111]
[330625113,1719640244748,-500.0,0.00043835,120]
[330625114,1719640244772,-500.0,0.00043835,120]
[330625115,1719640244796,-500.0,0.00043835,120]
[330625116,1719640244821,-500.0,0.00043835,120]
[330625117,1719640244845,-500.0,0.00043835,120]
[330625118,1719640244869,-509.87113615,0.00043835,120]
[330625119,1719640244892,-7933.63,0.00043835,120]
[330625120,1719640244917,-7933.63,0.00043835,120]
[330625121,1719640244942,-7933.63,0.00043835,120]
[330625122,1719640244967,-7933.63,0.00043835,120]
[330625123,1719640244992,-7933.63,0.00043835,120]
[330625124,1719640245016,-7933.63,0.00043835,120]
[330625125,1719640245041,-7933.63,0.00043835,120]
[330625126,1719640245067,-7933.63,0.00043835,120]
[330625127,1719640245091,-7933.63,0.00043835,120]
[330625128,1719640245117,-7933.63,0.00043835,120]
[330625129,1719640245142,-7933.63,0.00043835,120]
[330625130,1719640245167,-7933.63,0.00043835,120]
[330625131,1719640245192,-7933.63,0.00043835,120]
[330625132,1719640245217,-7933.63,0.00043835,120]
[330625133,1719640245242,-7933.63,0.00043835,120]
[330625134,1719640245268,-7933.63,0.00043835,120]
[330625135,1719640245293,-7933.63,0.00043835,120]
[330625136,1719640245318,-7933.63,0.00043835,120]
[330625137,1719640245343,-7933.63,0.00043835,120]
[330625138,1719640245368,-7933.63,0.00043835,120]
[330625139,1719640245394,-7933.63,0.00043835,120]
[330625140,1719640245419,-7933.63,0.00043835,120]
[330625141,1719640245444,-7933.63,0.00043835,120]
[330625142,1719640245468,-7933.71983716,0.00043835,120]
[330625143,1719640245495,-517.74,0.00043835,120]
[330625144,1719640245522,-517.74,0.00043835,120]
[330625145,1719640245548,-517.74,0.00043835,120]
[330625146,1719640245575,-517.74,0.00043835,120]
[330625147,1719640245599,-517.74,0.00043835,120]
[330625148,1719640245624,-517.74,0.00043835,120]
[330625149,1719640245650,-517.74,0.00043835,120]
[330625150,1719640245675,-517.74,0.00043835,120]
[330625151,1719640245699,-517.74,0.00043835,120]
[330625152,1719640245725,-517.74,0.00043835,120]
[330625153,1719640245753,-517.74,0.00043835,120]
[330625154,1719640245779,-517.74,0.00043835,120]
[330625155,1719640245804,-517.74,0.00043835,120]
[330625156,1719640245831,-517.74,0.00043835,120]
[330625157,1719640245861,-517.74,0.00043835,120]
[330625158,1719640245887,-517.74,0.00043835,120]
[330625159,1719640245912,-517.74,0.00043835,120]
[330625160,1719640245936,-517.74,0.00043835,120]
[330625162,1719640246236,-517.74,0.00043835,120]
[330625163,1719640246264,-517.74,0.00043835,120]
[330625164,1719640246289,-517.74,0.00043835,120]
[330625165,1719640246314,-517.74,0.00043835,120]
[330625166,1719640246340,-517.74,0.00043835,120]
[330625167,1719640246364,-517.84968544,0.00043835,120]
[330625168,1719640246388,-500.0,0.00043835,30]
[330625169,1719640246413,-500.0,0.00043836,14]
[330625170,1719640246440,-288.854486,0.0004385,30]
[330625171,1719640246466,-398.894291,0.0004385,30]
[330625172,1719640246490,-931.83777091,0.000439,120]
[330625173,1719640246518,-196.55973495,0.000439,120]
[330625174,1719640246544,-196.55973487,0.000439,120]
[330625175,1719640246573,-196.55973487,0.000439,120]
[330625176,1719640246601,-196.55973487,0.000439,120]
[330625177,1719640246625,-196.55973487,0.000439,120]
[330625178,1719640246651,-196.55973487,0.000439,120]
[330625179,1719640246676,-196.55973487,0.000439,120]
[330625180,1719640246708,-196.55973487,0.000439,120]
[330625181,1719640246736,-196.55973487,0.000439,120]
[330625182,1719640246760,-196.55973487,0.000439,120]
[330625183,1719640246783,-154.013896,0.000439,51]
[330625184,1719640246809,-150.0,0.00043904,120]
[330625185,1719640246835,-152.0,0.00043924,31]
[330625186,1719640246860,-10000.0,0.00044,12]
[330625187,1719640246884,-2000.0,0.00044,14]
[330625188,1719640246909,-10000.0,0.00044,14]
[330625189,1719640246936,-164.73213251,0.00044,30]
[330625190,1719640246962,-1000.0,0.00044,120]
[330625191,1719640246987,-1050.0,0.00044,120]
[330625192,1719640247011,-240.0,0.00044,120]
[330625193,1719640247037,-679.886129,0.00044,57]
[330625194,1719640247062,-679.59980285,0.00044075,30]
[330625195,1719640247088,-160.08275807,0.000441,120]
[330625196,1719640247114,-1000.0,0.00044109,120]
[330625197,1719640247139,-172.27777778,0.00044274,120]
[330625198,1719640247164,-288.854486,0.00044378,30]
[330625199,1719640247190,-398.894291,0.00044378,30]
[330625200,1719640247214,-186.76650449,0.0004438,120]
[330625201,1719640247239,-186.76650449,0.0004438,120]
[330625202,1719640247264,-186.76650449,0.0004438,120]
[330625203,1719640247288,-187.26,0.0004438,120]
[330625204,1719640247313,-218.39341782,0.0004438,120]
[330625205,1719640247339,-218.39341782,0.0004438,120]
[330625206,1719640247364,-218.39341782,0.0004438,120]
[330625207,1719640247389,-218.39341782,0.0004438,120]
[330625208,1719640247414,-218.39341782,0.0004438,120]
[330625209,1719640247440,-218.39341782,0.0004438,120]
[330625210,1719640247465,-218.39341782,0.0004438,120]
[330625211,1719640247490,-218.39341782,0.0004438,120]
[330625212,1719640247518,-218.39341782,0.0004438,120]
[330625213,1719640247544,-218.39341782,0.0004438,120]
[330625214,1719640247569,-218.39341782,0.0004438,120]
[330625215,1719640247595,-218.39341782,0.0004438,120]
[330625216,1719640247620,-218.39341782,0.0004438,120]
[330625217,1719640247647,-218.39341782,0.0004438,120]
[330625218,1719640247672,-218.39341782,0.0004438,120]
[330625219,1719640247699,-218.39341782,0.0004438,120]
[330625220,1719640247725,-218.39341782,0.0004438,120]
[330625221,1719640247750,-218.39341782,0.0004438,120]
[330625222,1719640247774,-218.39341782,0.0004438,120]
[330625223,1719640247798,-218.89,0.0004438,120]
[330625224,1719640247824,-873.64867127,0.0004438,120]
[330625225,1719640247849,-873.64867127,0.0004438,120]
[330625226,1719640247874,-873.64867127,0.0004438,120]
[330625227,1719640247900,-873.64867127,0.0004438,120]
[330625228,1719640247926,-873.64867127,0.0004438,120]
[330625229,1719640247953,-873.64867127,0.0004438,120]
[330625230,1719640247978,-873.64867127,0.0004438,120]
[330625231,1719640248003,-873.64867127,0.0004438,120]
[330625232,1719640248029,-873.64867127,0.0004438,120]
[330625233,1719640248055,-873.64867127,0.0004438,120]
[330625234,1719640248079,-873.64867127,0.0004438,120]
[330625235,1719640248103,-873.64867127,0.0004438,120]
[330625236,1719640248128,-873.64867127,0.0004438,120]
[330625237,1719640248152,-873.64867127,0.0004438,120]
[330625238,1719640248177,-873.64867127,0.0004438,120]
[330625239,1719640248201,-873.64867127,0.0004438,120]
[330625240,1719640248225,-873.64867127,0.0004438,120]
[330625241,1719640248249,-873.64867127,0.0004438,120]
[330625242,1719640248274,-873.64867127,0.0004438,120]
[330625243,1719640248298,-874.14,0.0004438,120]
[330625244,1719640248322,-182.86347452,0.0004438,120]
[330625245,1719640248347,-182.86347452,0.0004438,120]
[330625246,1719640248371,-182.86347452,0.0004438,120]
[330625247,1719640248395,-182.86347452,0.0004438,120]
[330625248,1719640248420,-182.86347452,0.0004438,120]
[330625249,1719640248445,-182.86347452,0.0004438,120]
[330625250,1719640248471,-182.86347452,0.0004438,120]
[330625251,1719640248498,-182.86347452,0.0004438,120]